bitfinex/quotes_BTCUSD_20250224
["timestamp","ask_amount","ask_price","bid_price","bid_amount"]
[1740386142998,0.0016588,95678.0,95677.0,0.14301987]
[1740386143248,0.0016588,95678.0,95677.0,0.29979687]
[1740386144122,0.0016588,95678.0,95677.0,0.14301987]
[1740386144307,0.1584338,95678.0,95677.0,0.14293987]
[1740386144508,0.1584338,95678.0,95677.0,0.12179419]
[1740386144704,0.1584338,95678.0,95677.0,0.0104285]
[1740386144930,0.1584338,95678.0,95677.0,0.002]
[1740386151247,0.1584338,95678.0,95677.0,0.0028494]
[1740386154883,0.1584338,95678.0,95677.0,0.0018494]
[1740386155081,0.1584338,95678.0,95677.0,0.0008494]
[1740386162978,0.2352338,95678.0,95677.0,0.0008494]
[1740386164072,0.306788,95670.0,95669.0,0.0008494]
[1740386166125,0.307788,95670.0,95669.0,0.0018494]
[1740386166678,0.306788,95670.0,95669.0,0.0008494]
[1740386166882,0.309788,95670.0,95669.0,0.0008494]
[1740386167483,0.306788,95670.0,95669.0,0.0008494]
[1740386167896,0.309788,95670.0,95669.0,0.0008494]
[1740386168122,0.311788,95670.0,95669.0,0.0008494]
[1740386169745,0.005,95670.0,95669.0,0.0008494]
[1740386170280,0.005,95670.0,95669.0,0.0815494]
[1740386170452,0.005,95670.0,95669.0,0.08817927]
[1740386171689,0.005,95670.0,95669.0,0.34761496]
[1740386172824,0.002,95670.0,95669.0,0.34761496]
[1740386173031,0.002,95670.0,95669.0,0.19082496]
[1740386173323,0.003,95670.0,95669.0,0.19082496]
[1740386173514,0.001,95670.0,95669.0,0.34761496]
[1740386173897,0.001,95670.0,95669.0,0.19082496]
[1740386174096,0.001,95670.0,95669.0,0.34761496]
[1740386174511,0.001,95670.0,95669.0,0.19082496]
[1740386174708,0.001,95670.0,95669.0,0.34761496]
[1740386175650,0.0016588,95678.0,95670.0,0.156788]
[1740386175865,0.156779,95676.0,95671.0,0.10264569]
[1740386176068,0.209036,95677.0,95671.0,0.10927369]
[1740386176207,0.15678,95676.0,95671.0,0.10927369]
[1740386176403,0.1584348,95678.0,95671.0,0.10927369]
[1740386176607,0.0016588,95678.0,95674.0,0.156781]
[1740386176808,0.0016588,95678.0,95675.0,0.10264569]
[1740386177011,0.0016588,95678.0,95675.0,0.10926995]
[1740386177933,0.0016588,95678.0,95675.0,0.11026995]
[1740386179132,0.0016588,95678.0,95675.0,0.11126995]
[1740386179349,0.0016588,95678.0,95676.0,0.156778]
[1740386179578,0.0016588,95678.0,95677.0,0.10926809]
[1740386181598,0.0016588,95678.0,95677.0,0.18546809]
[1740386181798,0.0016588,95678.0,95677.0,0.34324509]
[1740386183403,0.0016588,95678.0,95677.0,0.34424509]
[1740386188700,0.0016588,95678.0,95677.0,0.36499503]
[1740386189810,0.0016588,95678.0,95677.0,0.18746809]
[1740386192630,0.0016588,95678.0,95677.0,0.34424509]
[1740386193622,0.0016588,95678.0,95677.0,0.18746809]
[1740386194635,0.0016588,95678.0,95677.0,0.19610809]
[1740386194836,0.1584338,95678.0,95677.0,0.19610809]
[1740386195039,0.0016588,95678.0,95677.0,0.19610809]
[1740386196179,0.1584338,95678.0,95677.0,0.19610809]
[1740386196386,0.0016588,95678.0,95677.0,0.19610809]
[1740386197757,1.044378,95751.0,95677.0,0.19610809]
[1740386198347,0.156771,95681.0,95677.0,0.19610809]
[1740386198559,0.156771,95681.0,95677.0,0.19510809]
[1740386198747,0.156771,95681.0,95677.0,0.19410809]
[1740386199311,0.156767,95683.0,95677.0,0.19410809]
[1740386199514,0.156766,95684.0,95677.0,0.35088309]
[1740386199830,0.156766,95684.0,95677.0,0.19410809]
[1740386200037,0.17737984,95687.0,95678.0,0.209034]
[1740386200190,0.01961884,95687.0,95679.0,0.25941969]
[1740386200397,0.01961884,95687.0,95679.0,0.26602551]
[1740386200597,0.156772,95680.0,95679.0,0.00660582]
[1740386201139,0.156779,95676.0,95675.0,0.0008494]
[1740386201331,0.156779,95676.0,95675.0,0.10349509]
[1740386201511,0.156779,95676.0,95675.0,0.11010464]
[1740386202246,0.157779,95676.0,95675.0,0.11010464]
[1740386202444,0.158779,95676.0,95675.0,0.11010464]
[1740386203424,0.157779,95676.0,95675.0,0.11010464]
[1740386203690,0.156779,95676.0,95675.0,0.11010464]
[1740386203897,0.157779,95676.0,95675.0,0.11010464]
[1740386204297,0.158779,95676.0,95675.0,0.11010464]
[1740386204497,0.157779,95676.0,95675.0,0.11010464]
[1740386204904,0.158779,95676.0,95675.0,0.11010464]
[1740386206744,0.002,95676.0,95675.0,0.11010464]
[1740386206893,0.157779,95676.0,95675.0,0.11010464]
[1740386207308,0.156779,95676.0,95675.0,0.11113226]
[1740386207508,0.209034,95678.0,95675.0,0.11213226]
[1740386207732,0.156778,95677.0,95676.0,0.10264569]
[1740386208918,0.01861884,95687.0,95676.0,0.10264569]
[1740386209123,0.156777,95677.0,95676.0,0.10264569]
[1740386210154,0.0016988,95678.0,95676.0,0.10264569]
[1740386210401,0.156777,95677.0,95676.0,0.10591705]
[1740386210614,0.1584748,95678.0,95676.0,0.10591705]
[1740386210844,0.0016988,95678.0,95677.0,0.156777]
[1740386211130,0.0016988,95678.0,95677.0,0.38562269]
[1740386211346,0.0016988,95678.0,95677.0,0.22884569]
[1740386211963,0.0016988,95678.0,95677.0,0.23211705]
[1740386212146,0.1584738,95678.0,95677.0,0.23211705]
[1740386212280,0.0016988,95678.0,95677.0,0.24483705]
[1740386213304,0.1584738,95678.0,95677.0,0.24483705]
[1740386213523,0.0016988,95678.0,95677.0,0.25547204]
[1740386214158,0.1584738,95678.0,95677.0,0.25547204]
[1740386214385,0.0016988,95678.0,95677.0,0.25547204]
[1740386214827,0.1584738,95678.0,95677.0,0.25547204]
[1740386215290,0.0016988,95678.0,95677.0,0.25547204]
[1740386215951,0.0016988,95678.0,95677.0,0.41224904]
[1740386216351,0.0016988,95678.0,95677.0,0.43359352]
[1740386217388,0.0016988,95678.0,95677.0,0.43882738]
[1740386217920,0.0016988,95678.0,95677.0,0.45336823]
[1740386222536,0.0016988,95678.0,95677.0,0.60336823]
[1740386223060,0.0016988,95678.0,95677.0,1.46676823]
[1740386223204,0.0017002,95687.0,95677.0,1.46676823]
[1740386223205,0.0017002,95687.0,95682.0,0.02]
[1740386223409,0.0017006,95689.0,95688.0,0.32199985]
[1740386223630,0.0017006,95689.0,95688.0,0.57464554]
[1740386223931,0.0017006,95689.0,95688.0,0.61379771]
[1740386224536,0.0017006,95689.0,95688.0,0.62230293]
[1740386224743,0.0016998,95694.0,95693.0,0.45199185]
[1740386224975,0.0016998,95694.0,95693.0,0.88256688]
[1740386226387,0.0016998,95694.0,95693.0,0.89896688]
[1740386226936,0.0016998,95694.0,95693.0,0.90596688]
[1740386228602,0.0016998,95694.0,95693.0,1.14080688]
[1740386228803,0.0016998,95694.0,95693.0,1.6953121]
[1740386229437,0.0016998,95694.0,95693.0,1.6952721]
[1740386232358,0.0016998,95694.0,95693.0,1.71668839]
[1740386234927,0.0016998,95694.0,95693.0,1.70732839]
[1740386235250,0.0016998,95694.0,95693.0,1.71664839]
[1740386235485,0.0016998,95694.0,95693.0,1.70732839]
[1740386235703,0.0016998,95694.0,95693.0,1.71664839]
[1740386238957,0.0016998,95694.0,95693.0,1.71660839]
[1740386239397,0.0016998,95694.0,95693.0,1.17060839]
[1740386244869,0.208945,95719.0,95695.0,0.32128885]
[1740386245090,0.208956,95714.0,95695.0,0.43321454]
[1740386245273,0.20896,95712.0,95695.0,0.76222992]
[1740386245933,0.156723,95710.0,95695.0,0.76222992]
[1740386246140,0.156721,95711.0,95695.0,0.76922992]
[1740386246350,0.208951,95716.0,95695.0,0.76922992]
[1740386246568,0.15672,95712.0,95695.0,0.76918992]
[1740386246774,0.208947,95718.0,95695.0,0.76918992]
[1740386246979,0.156723,95710.0,95695.0,0.77618992]
[1740386247183,0.156721,95712.0,95695.0,0.77618992]
[1740386247386,0.156721,95712.0,95695.0,0.78469514]
[1740386247604,0.156722,95711.0,95695.0,0.78469514]
[1740386248194,0.156727,95708.0,95695.0,0.78469514]
[1740386248427,0.208967,95709.0,95695.0,0.77545514]
[1740386248648,0.208967,95709.0,95695.0,0.78465514]
[1740386248857,0.156731,95706.0,95695.0,0.78465514]
[1740386249066,0.156731,95705.0,95695.0,0.78465514]
[1740386249500,0.208962,95711.0,95695.0,0.78465514]
[1740386249703,0.156728,95707.0,95695.0,0.78465514]
[1740386249904,0.15673,95706.0,95695.0,0.78465514]
[1740386251046,0.208972,95707.0,95695.0,0.78465514]
[1740386251487,0.1584458,95696.0,95695.0,0.45416629]
[1740386251658,0.1584458,95696.0,95695.0,0.46336629]
[1740386252082,0.0016998,95696.0,95695.0,0.46336629]
[1740386252535,0.0016998,95696.0,95695.0,0.45636629]
[1740386252937,0.0016998,95696.0,95695.0,0.46336629]
[1740386254129,0.0016998,95696.0,95695.0,0.45813243]
[1740386254532,0.0016998,95696.0,95695.0,0.61488043]
[1740386255534,0.0016998,95696.0,95695.0,0.45813243]
[1740386255944,0.0016998,95696.0,95695.0,0.45113243]
[1740386256195,0.0016998,95696.0,95695.0,0.59868043]
[1740386256536,0.0016998,95696.0,95695.0,0.60084043]
[1740386256733,0.0016998,95696.0,95695.0,0.60484043]
[1740386256943,0.0016998,95696.0,95695.0,0.44809243]
[1740386257163,0.0016998,95696.0,95695.0,0.12669243]
[1740386257384,0.0016998,95696.0,95695.0,0.28744043]
[1740386257787,0.0016998,95696.0,95695.0,0.2926731]
[1740386258036,0.0016998,95696.0,95695.0,0.2835131]
[1740386258230,0.0016998,95696.0,95695.0,0.2926731]
[1740386259678,0.0016998,95696.0,95695.0,0.28744043]
[1740386261468,0.0016998,95696.0,95695.0,0.30721395]
[1740386262303,0.0016998,95696.0,95695.0,0.31504264]
[1740386263202,0.0016998,95696.0,95695.0,0.63644264]
[1740386275077,0.0016998,95696.0,95695.0,0.62728264]
[1740386275255,0.0016998,95696.0,95695.0,0.63628264]
[1740386275444,0.0016998,95696.0,95695.0,0.62728264]
[1740386275642,0.0016998,95696.0,95695.0,0.63628264]
[1740386277293,0.0016998,95696.0,95695.0,0.62174179]
[1740386277851,0.0016998,95696.0,95695.0,0.46499379]
[1740386278095,0.0016998,95696.0,95695.0,0.62174179]
[1740386278311,0.0016998,95696.0,95695.0,0.46499379]
[1740386278528,0.0016998,95696.0,95695.0,0.62174179]
[1740386279334,0.0016998,95696.0,95695.0,0.46499379]
[1740386279749,0.0016998,95696.0,95695.0,0.62174179]
[1740386281240,0.0016998,95696.0,95695.0,0.71992047]
[1740386281684,0.0016998,95696.0,95695.0,0.79782047]
[1740386281889,0.0016998,95696.0,95695.0,0.76058264]
[1740386282096,0.15671,95718.0,95696.0,0.01454085]
[1740386282097,0.1861073,95718.0,95696.0,0.01454085]
[1740386282306,0.156714,95716.0,95700.0,0.14328329]
[1740386282513,0.156714,95716.0,95710.0,0.156722]
[1740386282721,0.0005,95720.0,95711.0,0.10264569]
[1740386282928,0.156712,95717.0,95711.0,0.26692074]
[1740386283135,0.01555033,95720.0,95711.0,0.11020074]
[1740386283350,0.208944,95719.0,95711.0,0.11020074]
[1740386283562,0.01555033,95720.0,95711.0,0.11020074]
[1740386283773,0.15671,95718.0,95711.0,0.11020074]
[1740386283991,0.156718,95714.0,95711.0,0.11020074]
[1740386284208,0.01555033,95720.0,95711.0,0.11020074]
[1740386284425,0.01555033,95720.0,95711.0,0.10264569]
[1740386285011,0.17225733,95720.0,95712.0,0.01082532]
[1740386285171,0.17225733,95720.0,95713.0,0.10264569]
[1740386285382,0.01555033,95720.0,95713.0,0.11019856]
[1740386285587,0.156708,95719.0,95713.0,0.11019856]
[1740386286927,0.15671,95718.0,95714.0,0.00327136]
[1740386287167,0.15671,95718.0,95715.0,0.10264569]
[1740386287664,0.156713,95716.0,95715.0,0.10264569]
[1740386289210,0.156711,95718.0,95715.0,0.10264569]
[1740386289411,0.01555033,95720.0,95715.0,0.10264569]
[1740386289678,0.156712,95717.0,95716.0,0.0075496]
[1740386289987,0.156711,95717.0,95716.0,0.10264569]
[1740386290422,0.001,95718.0,95716.0,0.10264569]
[1740386290630,0.001,95718.0,95716.0,0.11019529]
[1740386291708,0.0005,95720.0,95716.0,0.11019529]
[1740386292132,0.01554885,95720.0,95717.0,0.00327019]
[1740386292416,0.0005,95720.0,95718.0,0.10264569]
[1740386292747,0.0005,95720.0,95719.0,0.00754634]
[1740386292953,0.0015,95720.0,95719.0,0.11019203]
[1740386293543,0.0015,95720.0,95719.0,0.11346222]
[1740386293981,0.17277587,95720.0,95719.0,0.11346222]
[1740386294208,0.158207,95720.0,95719.0,0.11346222]
[1740386294419,0.158207,95720.0,95719.0,0.10591588]
[1740386294669,0.17317782,95720.0,95719.0,0.10264569]
[1740386294885,0.156723,95710.0,95708.0,0.09362922]
[1740386295089,0.208961,95712.0,95708.0,0.09362922]
[1740386295090,0.156725,95709.0,95708.0,0.09362922]
[1740386296531,0.156725,95709.0,95708.0,0.09562922]
[1740386296717,0.156725,95709.0,95708.0,0.002]
[1740386297137,0.156725,95709.0,95708.0,0.00527044]
[1740386297743,0.156725,95709.0,95708.0,0.00327044]
[1740386298517,0.157725,95709.0,95708.0,0.00327044]
[1740386298929,0.156725,95709.0,95708.0,0.00327044]
[1740386299536,0.157725,95709.0,95708.0,0.00327044]
[1740386299723,0.157725,95709.0,95694.0,0.09532882]
[1740386299724,0.156746,95696.0,95694.0,0.0016996]
[1740386299936,0.284046,95696.0,95694.0,0.0016996]
[1740386300728,0.284046,95696.0,95695.0,0.0056992]
[1740386301419,0.285046,95696.0,95695.0,0.0056992]
[1740386302238,0.285046,95696.0,95695.0,0.0016992]
[1740386302441,0.288046,95696.0,95695.0,0.0026992]
[1740386303051,0.207546,95696.0,95695.0,0.0026992]
[1740386303413,0.004,95696.0,95695.0,0.0026992]
[1740386303618,0.004,95696.0,95695.0,0.1594472]
[1740386303823,0.004,95696.0,95695.0,0.01027167]
[1740386304276,0.004,95696.0,95695.0,0.26966536]
[1740386304702,0.003,95696.0,95695.0,0.26966536]
[1740386304907,0.004,95696.0,95695.0,0.11291736]
[1740386305101,0.001,95696.0,95695.0,0.11191736]
[1740386305304,0.001,95696.0,95695.0,0.26866536]
[1740386305526,0.001,95696.0,95695.0,0.34946536]
[1740386305734,0.004,95696.0,95695.0,0.34946536]
[1740386306646,0.001,95696.0,95695.0,0.34946536]
[1740386306853,0.001,95696.0,95695.0,0.35146536]
[1740386307272,0.156736,95702.0,95695.0,0.19471736]
[1740386307488,0.156735,95703.0,95697.0,0.156744]
[1740386307696,0.156735,95703.0,95698.0,0.10264569]
[1740386307917,0.156735,95703.0,95698.0,0.25938769]
[1740386308118,0.208979,95704.0,95698.0,0.11021489]
[1740386308761,0.156734,95703.0,95698.0,0.11021489]
[1740386309188,0.208974,95706.0,95698.0,0.11021489]
[1740386309437,0.208958,95713.0,95698.0,0.11021489]
[1740386309702,0.156737,95702.0,95698.0,0.11021489]
[1740386310309,0.001,95703.0,95698.0,0.11021489]
[1740386310469,0.208946,95719.0,95698.0,0.11021489]
[1740386310673,0.15,95719.0,95698.0,0.11021489]
[1740386310880,0.003,95713.0,95703.0,0.156733]
[1740386311079,0.003,95713.0,95704.0,0.11020836]
[1740386311263,0.156731,95705.0,95704.0,0.11020836]
[1740386311456,0.156731,95705.0,95704.0,0.10264569]
[1740386311831,0.156731,95705.0,95704.0,0.11020836]
[1740386312428,0.157731,95705.0,95704.0,0.10264569]
[1740386313285,0.002,95705.0,95696.0,0.00327063]
[1740386313498,0.156744,95697.0,95696.0,0.01271063]
[1740386313636,0.156744,95697.0,95696.0,0.00327063]
[1740386314468,0.156744,95697.0,95696.0,0.10591632]
[1740386315127,0.156744,95697.0,95696.0,0.10464569]
[1740386315339,0.156744,95697.0,95696.0,0.002]
[1740386316140,0.156744,95697.0,95696.0,0.0036994]
[1740386316458,0.156744,95697.0,95696.0,0.0056994]
[1740386316724,0.156744,95697.0,95696.0,0.0036994]
[1740386317203,0.157744,95697.0,95696.0,0.0036994]
[1740386317575,0.157744,95697.0,95696.0,0.0016994]
[1740386318026,0.158744,95697.0,95696.0,0.0016994]
[1740386320787,0.308744,95697.0,95696.0,0.0016994]
[1740386320991,0.389644,95697.0,95696.0,4e-07]
[1740386321196,0.434844,95697.0,95696.0,4e-07]
[1740386321853,0.44174378,95697.0,95696.0,4e-07]
[1740386322288,0.44174378,95697.0,95696.0,0.0010004]
[1740386322289,0.44574378,95697.0,95696.0,0.0010004]
[1740386322500,0.44474378,95697.0,95696.0,4e-07]
[1740386322710,0.3003068,95693.0,95692.0,6e-07]
[1740386322910,0.3811068,95693.0,95692.0,6e-07]
[1740386324770,0.156775,95678.0,95677.0,2e-07]
[1740386325034,0.434675,95678.0,95677.0,2e-07]
[1740386325379,0.306788,95670.0,95646.0,0.00928]
[1740386326231,0.55573369,95670.0,95669.0,4e-07]
[1740386326438,0.65714392,95670.0,95669.0,4e-07]
[1740386326645,1.00304392,95670.0,95669.0,4e-07]
[1740386327054,1.05553364,95670.0,95669.0,4e-07]
[1740386327260,1.06053364,95670.0,95669.0,4e-07]
[1740386327466,1.05553364,95670.0,95669.0,4e-07]
[1740386327841,1.06253364,95670.0,95669.0,4e-07]
[1740386328260,1.06953364,95670.0,95669.0,4e-07]
[1740386328891,0.156849,95633.0,95632.0,0.09447822]
[1740386329239,0.156849,95633.0,95632.0,0.10191791]
[1740386329441,0.15548419,95633.0,95632.0,0.09447822]
[1740386329874,0.15548419,95633.0,95632.0,0.000849]
[1740386332638,0.15548419,95633.0,95632.0,0.001849]
[1740386333601,0.17349116,95633.0,95632.0,0.001849]
[1740386339742,0.15,95634.0,95632.0,0.001849]
[1740386340210,0.156849,95633.0,95632.0,0.001849]
[1740386340912,0.156849,95633.0,95632.0,0.000849]
[1740386342295,0.156849,95633.0,95632.0,0.001849]
[1740386342529,0.156849,95633.0,95632.0,0.000849]
[1740386342926,0.156849,95633.0,95632.0,0.001849]
[1740386343683,0.306846,95635.0,95634.0,0.049]
[1740386343922,0.306846,95635.0,95634.0,0.05643751]
[1740386344120,0.16858185,95635.0,95634.0,0.049]
[1740386344369,0.16858185,95635.0,95634.0,0.05643751]
[1740386344768,0.32542785,95635.0,95634.0,0.05643751]
[1740386345009,0.32642785,95635.0,95634.0,0.05643751]
[1740386345222,0.32642785,95635.0,95634.0,0.049]
[1740386345966,0.32642785,95635.0,95634.0,0.05643751]
[1740386346513,0.32642785,95635.0,95634.0,0.00743751]
[1740386346933,0.306849,95633.0,95632.0,0.000849]
[1740386347148,0.383549,95633.0,95632.0,0.000849]
[1740386349208,0.385549,95633.0,95632.0,0.000849]
[1740386349410,0.43803872,95633.0,95632.0,0.000849]
[1740386349588,0.41354085,95633.0,95632.0,0.000849]
[1740386349808,0.41654085,95633.0,95632.0,0.000849]
[1740386350016,0.388549,95633.0,95632.0,0.000849]
[1740386350228,0.388549,95633.0,95632.0,1e-06]
[1740386351036,0.41654085,95633.0,95632.0,1e-06]
[1740386351288,0.36433872,95633.0,95632.0,1e-06]
[1740386351481,0.311849,95633.0,95632.0,1e-06]
[1740386357040,0.005,95633.0,95632.0,1e-06]
[1740386357241,0.161849,95633.0,95632.0,1e-06]
[1740386360538,0.41449469,95633.0,95632.0,1e-06]
[1740386360742,0.54369469,95633.0,95632.0,1e-06]
[1740386361794,0.360249,95633.0,95632.0,1e-06]
[1740386362000,0.311849,95633.0,95632.0,1e-06]
[1740386366219,0.3126993,95633.0,95632.0,1e-06]
[1740386375622,0.0058503,95633.0,95632.0,0.081101]
[1740386376058,0.0058503,95633.0,95632.0,0.08854069]
[1740386376259,0.1626993,95633.0,95632.0,0.08854069]
[1740386376460,0.1596993,95633.0,95632.0,0.08854069]
[1740386376807,0.1596993,95633.0,95632.0,0.081101]
[1740386377008,0.1576993,95633.0,95632.0,0.081101]
[1740386377471,0.1576993,95633.0,95632.0,0.082101]
[1740386380982,0.0008503,95633.0,95632.0,0.39763738]
[1740386381178,0.0008503,95633.0,95632.0,0.41217823]
[1740386382209,0.0008503,95633.0,95632.0,0.41117823]
[1740386382409,0.0008503,95633.0,95632.0,0.41417823]
[1740386383183,0.0008503,95633.0,95632.0,0.41745079]
[1740386384166,0.0008503,95633.0,95632.0,0.42673079]
[1740386385047,0.0008503,95633.0,95632.0,0.42345823]
[1740386391074,0.0008503,95633.0,95632.0,0.42673079]
[1740386393709,0.0008503,95633.0,95632.0,0.42573079]
[1740386394117,0.0018503,95633.0,95632.0,0.43173079]
[1740386394322,0.0018503,95633.0,95632.0,0.42973079]
[1740386394533,0.0028503,95633.0,95632.0,0.43573079]
[1740386396620,0.0028503,95633.0,95632.0,0.43245823]
[1740386399954,0.0028503,95633.0,95632.0,0.43573079]
[1740386402604,0.0028503,95633.0,95632.0,0.75713079]
[1740386403595,0.0028503,95633.0,95632.0,0.76495181]
[1740386405564,0.0028503,95633.0,95632.0,0.77018733]
[1740386407666,0.0028503,95633.0,95632.0,0.76168733]
[1740386408906,0.0028503,95633.0,95632.0,0.75645181]
[1740386409108,0.0008503,95634.0,95632.0,0.75645181]
[1740386409109,6e-07,95634.0,95633.0,0.32138985]
[1740386409283,6e-07,95634.0,95633.0,0.50454692]
[1740386409660,6e-07,95634.0,95633.0,0.51197229]
[1740386410477,0.156785,95672.0,95633.0,0.52047912]
[1740386410709,0.156785,95672.0,95667.0,0.01454085]
[1740386410909,0.156785,95672.0,95669.0,0.01454085]
[1740386411110,0.156785,95672.0,95670.0,0.10264569]
[1740386411246,0.23243311,95674.0,95670.0,0.10264569]
[1740386411247,0.156787,95671.0,95670.0,0.11003073]
[1740386411654,0.156786,95672.0,95670.0,0.11003073]
[1740386411852,0.156787,95671.0,95670.0,0.11003073]
[1740386412465,0.156787,95671.0,95670.0,0.10264569]
[1740386412840,0.209046,95673.0,95669.0,0.002]
[1740386412841,0.156788,95670.0,95669.0,0.002]
[1740386413251,0.1568,95663.0,95662.0,0.02366085]
[1740386413453,0.1568,95663.0,95662.0,0.12630654]
[1740386413660,0.1568,95663.0,95662.0,0.1337003]
[1740386414759,0.1568,95663.0,95662.0,0.1357003]
[1740386415707,0.1568,95663.0,95662.0,0.1377003]
[1740386420741,0.156798,95664.0,95663.0,0.01454085]
[1740386420943,0.156798,95664.0,95663.0,0.11718654]
[1740386421217,0.156798,95664.0,95663.0,0.12457921]
[1740386422484,0.156798,95664.0,95663.0,0.12657921]
[1740386423445,0.156798,95664.0,95663.0,0.12857921]
[1740386425738,0.21830436,95680.0,95663.0,0.12857921]
[1740386425739,0.209045,95673.0,95663.0,0.12857921]
[1740386425931,0.156797,95665.0,95664.0,0.11718654]
[1740386426291,0.156797,95665.0,95664.0,0.12457812]
[1740386427091,0.156797,95665.0,95664.0,0.12557812]
[1740386428980,0.156797,95665.0,95664.0,0.12657812]
[1740386430319,0.02291327,95674.0,95664.0,0.12657812]
[1740386430564,0.209038,95676.0,95664.0,0.12657812]
[1740386431150,0.156797,95665.0,95664.0,0.12657812]
[1740386431361,0.156797,95665.0,95664.0,0.12457812]
[1740386431777,0.156795,95666.0,95664.0,0.12457812]
[1740386431997,0.156795,95666.0,95664.0,0.20267812]
[1740386432197,0.156794,95667.0,95664.0,0.20267812]
[1740386432397,0.156794,95667.0,95664.0,0.20367812]
[1740386433008,0.02544282,95676.0,95665.0,0.01454085]
[1740386433235,0.02544282,95676.0,95667.0,0.01454085]
[1740386433424,0.02544282,95676.0,95666.0,0.10264569]
[1740386433425,0.02344282,95676.0,95670.0,0.01454085]
[1740386433624,0.15678,95675.0,95672.0,0.01454085]
[1740386433961,0.15678,95675.0,95671.0,0.10264569]
[1740386433962,0.156779,95676.0,95674.0,0.01454085]
[1740386434164,0.156779,95676.0,95675.0,0.10264569]
[1740386434341,0.156779,95676.0,95675.0,0.11138331]
[1740386434551,0.158779,95676.0,95675.0,0.10264569]
[1740386434748,0.156779,95676.0,95675.0,0.11138331]
[1740386435171,0.158779,95676.0,95675.0,0.11138331]
[1740386435745,0.005,95676.0,95675.0,0.11138331]
[1740386435954,0.161779,95676.0,95675.0,0.11138331]
[1740386436150,0.161779,95676.0,95675.0,0.10264569]
[1740386436356,0.161779,95676.0,95675.0,0.11138331]
[1740386436558,0.005,95676.0,95675.0,0.35940416]
[1740386436834,0.007,95676.0,95675.0,0.35940416]
[1740386437082,0.002,95676.0,95675.0,0.35940416]
[1740386437462,0.005,95676.0,95675.0,0.38000183]
[1740386437663,0.003,95676.0,95675.0,0.38227297]
[1740386437894,0.0008494,95682.0,95676.0,0.01454085]
[1740386438068,0.0008494,95682.0,95680.0,0.01454085]
[1740386438354,0.0008494,95682.0,95681.0,0.11718654]
[1740386438537,0.0008494,95682.0,95681.0,0.12591754]
[1740386438737,0.0008494,95682.0,95681.0,0.28268754]
[1740386438987,0.0008494,95682.0,95681.0,0.12591754]
[1740386439189,0.0008494,95682.0,95681.0,0.30228521]
[1740386440021,0.0008494,95682.0,95681.0,0.30555635]
[1740386440944,0.0008494,95682.0,95681.0,0.30755635]
[1740386441822,0.0008494,95682.0,95681.0,0.15078635]
[1740386442931,0.1576184,95682.0,95681.0,0.15078635]
[1740386443160,0.0008494,95682.0,95681.0,0.15078635]
[1740386443366,0.1576184,95682.0,95681.0,0.15078635]
[1740386443504,0.1576184,95682.0,95681.0,0.03359981]
[1740386443914,0.1576184,95682.0,95681.0,0.02486881]
[1740386444116,0.1576184,95682.0,95681.0,0.02059767]
[1740386444316,0.1576184,95682.0,95681.0,0.01959767]
[1740386444548,0.1606184,95682.0,95681.0,0.01959767]
[1740386444732,0.1596184,95682.0,95681.0,0.01959767]
[1740386444938,0.156784,95673.0,95672.0,0.00783005]
[1740386445138,0.156784,95673.0,95672.0,0.12501659]
[1740386445344,0.156784,95673.0,95672.0,0.12592747]
[1740386446660,0.156784,95673.0,95672.0,0.12792747]
[1740386447307,0.156784,95673.0,95672.0,0.12892747]
[1740386447506,0.156784,95673.0,95672.0,0.12018654]
[1740386448084,0.156784,95673.0,95672.0,0.01074093]
[1740386448306,0.156784,95673.0,95672.0,0.002]
[1740386448723,0.0008494,95682.0,95673.0,0.01454085]
[1740386449054,0.0008494,95682.0,95675.0,0.01454085]
[1740386449257,0.0008494,95682.0,95677.0,0.01454085]
[1740386449459,0.0008494,95682.0,95679.0,0.01454085]
[1740386449690,0.0008494,95682.0,95680.0,0.10264569]
[1740386449901,0.0008494,95682.0,95680.0,0.11137779]
[1740386450510,0.15677,95681.0,95680.0,0.11137779]
[1740386450923,0.15677,95681.0,95680.0,0.10264569]
[1740386451098,0.15677,95681.0,95680.0,0.0087321]
[1740386451303,0.156777,95677.0,95676.0,0.0032712]
[1740386452062,0.209034,95679.0,95672.0,0.01957485]
[1740386452269,0.15678,95676.0,95673.0,0.10264569]
[1740386452467,0.002,95681.0,95674.0,0.01454085]
[1740386452671,0.158771,95681.0,95676.0,0.01454085]
[1740386452898,0.002,95681.0,95678.0,0.01454085]
[1740386453054,0.002,95681.0,95680.0,0.09154085]
[1740386453258,0.002,95681.0,95680.0,0.19418654]
[1740386453516,0.0008494,95682.0,95680.0,0.20291864]
[1740386453726,0.0008494,95682.0,95681.0,0.11718654]
[1740386454236,0.0008494,95682.0,95681.0,0.12591754]
[1740386454634,0.0008494,95682.0,95681.0,0.14549239]
[1740386455165,0.0008494,95682.0,95681.0,0.14649239]
[1740386455387,0.1576184,95682.0,95681.0,0.14649239]
[1740386455591,0.0008494,95682.0,95681.0,0.30326239]
[1740386455803,0.0008494,95682.0,95681.0,0.14649239]
[1740386456571,0.0008494,95682.0,95681.0,0.30853348]
[1740386457316,0.14075061,95694.0,95682.0,0.01454085]
[1740386457522,0.208991,95698.0,95684.0,0.01454085]
[1740386457840,0.156751,95693.0,95686.0,0.17130285]
[1740386458038,0.156751,95693.0,95688.0,0.01454085]
[1740386458249,0.156749,95695.0,95690.0,0.01454085]
[1740386458608,0.22924001,95699.0,95692.0,0.01454085]
[1740386458815,0.156749,95694.0,95693.0,0.10264569]
[1740386459019,0.156747,95696.0,95693.0,0.11136345]
[1740386459223,0.156749,95695.0,95693.0,0.11136345]
[1740386459433,0.002,95694.0,95693.0,0.10264569]
[1740386459620,0.208994,95697.0,95693.0,0.10264569]
[1740386459789,0.003,95694.0,95693.0,0.10264569]
[1740386460200,0.156743,95698.0,95693.0,0.10264569]
[1740386460400,0.003,95695.0,95693.0,0.10264569]
[1740386460601,0.006,95695.0,95693.0,0.10264569]
[1740386461006,0.003,95695.0,95694.0,0.09194085]
[1740386461207,0.003,95695.0,95694.0,0.35133554]
[1740386461808,0.003,95695.0,95694.0,0.37091258]
[1740386463476,0.006,95695.0,95694.0,0.21416358]
[1740386464044,0.003,95695.0,95694.0,0.37091258]
[1740386464237,0.003,95695.0,95694.0,0.21416358]
[1740386464436,0.006,95695.0,95694.0,0.21416358]
[1740386464756,0.006,95695.0,95694.0,0.37091258]
[1740386464960,0.006,95695.0,95694.0,0.21416358]
[1740386465127,0.006,95695.0,95694.0,0.19458654]